Workbook

Sheet Skema 1
A1: Region Hovedstaden, psykiatriske sygehuse.
B2: Skema 1: Udgifter og indtægter på sygehusene/enhederne, eksklusiv omkostningssted 0001, Fælleskonto. (1.000 kr.)
A5: Sygehus | C5: 2023 | D5: 2022 | E5: 2021 | F5: 2020 | G5: Δ2022-2023 | H5: % afvigelse | I5: Begrundelse
A6: Region Hovedstaden, Voksen psykiatrien
A7: Region Hovedstaden, Voksen psykiatrien | B7: Hovedart 1: Lønninger | C7: 2926779.626 | D7: 2836633.606 | E7: 2663493.565 | F7: 2571690.418 | G7: =IF(ISERROR(C7- D7)=TRUE,"",C7 - D7) -> 90146.01967 | H7: =IF(ISERROR((((C7- D7)/D7)*100)=TRUE),"",IF((((C7- D7)/D7)*100)<-7,FIXED(((C7- D7)/D7)*100, 1,TRUE) &"%" & "▼",IF((((C7- D7)/D7)*100)>7,FIXED(((C7- D7)/D7)*100, 1,TRUE) &"%" &"▲",FIXED(((C7- D7)/D7)*100, 1,TRUE)&"%"))) -> 3,2%
A8: Region Hovedstaden, Voksen psykiatrien | B8: Hovedart 2: Varekøb | C8: 62810.17905 | D8: 76995.15485 | E8: 113127.3588 | F8: 79935.09949 | G8: -14184.9758 | H8: -18,4%▼
A9: Region Hovedstaden, Voksen psykiatrien | B9: Hovedart 4: Tjenesteydelser m.v. | C9: 472768.7155 | D9: 444910.407 | E9: 419035.3682 | F9: 344297.3372 | G9: 27858.30852 | H9: 6,3%
A10: Region Hovedstaden, Voksen psykiatrien | B10: Hovedart 5: Tilskud og overførsler | C10: 2404.893979 | D10: 2756.443433 | E10: 2966.417094 | F10: 1454.316527 | G10: -351.5494544 | H10: -12,8%▼
A11: Region Hovedstaden, Voksen psykiatrien | B11: Hovedart 6: Finansudgifter | C11: 0 | D11: 0 | E11: 0 | F11: 0 | G11: 0
A12: Region Hovedstaden, Voksen psykiatrien | B12: Hovedart 7: Indtægter | C12: -224195.6785 | D12: -229856.7527 | E12: -258132.1811 | F12: -190729.2116 | G12: 5661.074191 | H12: -2,5%
A13: Region Hovedstaden, Voksen psykiatrien | B13: Hovedart 8: Finansindtægter | C13: 0 | D13: 0 | E13: 0 | F13: 0 | G13: 0
A14: Region Hovedstaden, Voksen psykiatrien | B14: Hovedart 9: Interne udgifter og indtægter | C14: 0 | D14: 0 | E14: 0 | F14: 0 | G14: 0
A15: Region Hovedstaden, Voksen psykiatrien | B15: I alt | C15: =SUMIFS((C7:C14),(A7:A14),A15) -> 3240567.736 | D15: =SUMIFS((D7:D14),(A7:A14),A15) -> 3131438.859 | E15: =SUMIFS((E7:E14),(A7:A14),A15) -> 2940490.528 | F15: =SUMIFS((F7:F14),(A7:A14),A15) -> 2806647.959 | G15: 109128.8771 | H15: 3,5%
A16: Region Hovedstaden, Børn-unge psykiatrien | G16: 0
A17: Region Hovedstaden, Børn-unge psykiatrien | B17: Hovedart 1: Lønninger | C17: 509818.2517 | D17: 466017.9479 | E17: 425158.46 | F17: 398484.0218 | G17: 43800.30384 | H17: 9,4%▲
A18: Region Hovedstaden, Børn-unge psykiatrien | B18: Hovedart 2: Varekøb | C18: 7536.860563 | D18: 11113.52282 | E18: 11082.75031 | F18: 10079.47244 | G18: -3576.662256 | H18: -32,2%▼
A19: Region Hovedstaden, Børn-unge psykiatrien | B19: Hovedart 4: Tjenesteydelser m.v. | C19: 49202.42385 | D19: 53348.13969 | E19: 54212.40431 | F19: 45806.25438 | G19: -4145.715847 | H19: -7,8%▼
A20: Region Hovedstaden, Børn-unge psykiatrien | B20: Hovedart 5: Tilskud og overførsler | C20: 87.17315105 | D20: 68.15670669 | E20: 66.49636632 | F20: 105.3901034 | G20: 19.01644436 | H20: 27,9%▲
A21: Region Hovedstaden, Børn-unge psykiatrien | B21: Hovedart 6: Finansudgifter | C21: 0 | D21: 0 | E21: 0 | F21: 0 | G21: 0
A22: Region Hovedstaden, Børn-unge psykiatrien | B22: Hovedart 7: Indtægter | C22: -21332.10031 | D22: -32048.98657 | E22: -51775.75652 | F22: -45556.67744 | G22: 10716.88626 | H22: -33,4%▼
A23: Region Hovedstaden, Børn-unge psykiatrien | B23: Hovedart 8: Finansindtægter | C23: 0 | D23: 0 | E23: 0 | F23: 0 | G23: 0
A24: Region Hovedstaden, Børn-unge psykiatrien | B24: Hovedart 9: Interne udgifter og indtægter | C24: 0 | D24: 0 | E24: 0 | F24: 0 | G24: 0
A25: Region Hovedstaden, Børn-unge psykiatrien | B25: I alt | C25: =SUMIFS((C7:C24),(A7:A24),A25) -> 545312.609 | D25: =SUMIFS((D7:D24),(A7:A24),A25) -> 498498.7805 | E25: =SUMIFS((E7:E24),(A7:A24),A25) -> 438744.3545 | F25: =SUMIFS((F7:F24),(A7:A24),A25) -> 408918.4613 | G25: 46813.82844 | H25: 9,4%▲
A26: Ikke fordelte udgifter i Region Hovedstaden, psykiatri | G26: 0
A27: Ikke fordelte udgifter i Region Hovedstaden, psykiatri | B27: Hovedart 1: Lønninger | G27: 0
A28: Ikke fordelte udgifter i Region Hovedstaden, psykiatri | B28: Hovedart 2: Varekøb | G28: 0
A29: Ikke fordelte udgifter i Region Hovedstaden, psykiatri | B29: Hovedart 4: Tjenesteydelser m.v. | G29: 0
A30: Ikke fordelte udgifter i Region Hovedstaden, psykiatri | B30: Hovedart 5: Tilskud og overførsler | G30: 0
A31: Ikke fordelte udgifter i Region Hovedstaden, psykiatri | B31: Hovedart 6: Finansudgifter | G31: 0
A32: Ikke fordelte udgifter i Region Hovedstaden, psykiatri | B32: Hovedart 7: Indtægter | G32: 0
A33: Ikke fordelte udgifter i Region Hovedstaden, psykiatri | B33: Hovedart 8: Finansindtægter | G33: 0
A34: Ikke fordelte udgifter i Region Hovedstaden, psykiatri | B34: Hovedart 9: Interne udgifter og indtægter | G34: 0
A35: Ikke fordelte udgifter i Region Hovedstaden, psykiatri | B35: I alt | C35: =SUMIFS((C7:C34),(A7:A34),A35) -> 0 | D35: =SUMIFS((D7:D34),(A7:A34),A35) -> 0 | E35: =SUMIFS((E7:E34),(A7:A34),A35) -> 0 | F35: =SUMIFS((F7:F34),(A7:A34),A35) -> 0 | G35: 0

Sheet Skema 2
A1: Region Hovedstaden, psykiatriske sygehuse.
B2: Skema 2: Fællesudgifter og -indtægter vedrørende sygehusene. (1.000 kr.)
A5: Sygehus | C5: 2023 | D5: 2022 | E5: 2021 | F5: 2020 | G5: Δ2022-2023 | H5: % afvigelse | I5: Begrundelse
A6: Region Hovedstaden, Voksen psykiatrien
A7: Region Hovedstaden, Voksen psykiatrien | B7: Hovedart 1: Lønninger | C7: =247112.750167636*Nøgle!F27 -> 210453.6487 | D7: =234485.664206863*Nøgle!F5 -> 201398.7562 | E7: =+('Skema 1'!E7/('Skema 1'!E7+'Skema 1'!E17))*(227732.263192288) -> 196384.511 | F7: 139811.6896 | G7: =IF(ISERROR(C7- D7)=TRUE,"",C7 - D7) -> 9054.892476 | H7: =IF(ISERROR((((C7- D7)/D7)*100)=TRUE),"",IF((((C7- D7)/D7)*100)<-7,FIXED(((C7- D7)/D7)*100, 1,TRUE) &"%" & "▼",IF((((C7- D7)/D7)*100)>7,FIXED(((C7- D7)/D7)*100, 1,TRUE) &"%" &"▲",FIXED(((C7- D7)/D7)*100, 1,TRUE)&"%"))) -> 4,5%
A8: Region Hovedstaden, Voksen psykiatrien | B8: Hovedart 2: Varekøb | C8: =282539.825521685*Nøgle!F28 -> 252268.9956 | D8: =298113.883422191*Nøgle!F6 -> 260511.5095 | E8: =+('Skema 1'!E8/('Skema 1'!E8+'Skema 1'!E18))*349696.923187806 -> 318494.9243 | F8: 356512.6642 | G8: -8242.513826 | H8: -3,2%
A9: Region Hovedstaden, Voksen psykiatrien | B9: Hovedart 4: Tjenesteydelser m.v. | C9: =53548.2039704899*Nøgle!F29 -> 48500.60415 | D9: =(153676.911697849-15465.9374931691)*Nøgle!F7 -> 123412.837 | E9: =+('Skema 1'!E9/('Skema 1'!E9+'Skema 1'!E19))*(247134.157931937-3405.74977447589) -> 215808.3549 | F9: 126377.0481 | G9: -74912.2328 | H9: -60,7%▼ | I9: COVID merudgifter udgifter bortfaldet
A10: Region Hovedstaden, Voksen psykiatrien | B10: Hovedart 5: Tilskud og overførsler | C10: =20.4714654209393*Nøgle!F30 -> 19.75536828 | D10: =-7.05730363414842*Nøgle!F8 -> -6.887013133 | E10: =+('Skema 1'!E10/('Skema 1'!E10+'Skema 1'!E20))*-23.3378505265572 -> -22.82617016 | F10: 3.873140712 | G10: 26.64238141 | H10: -386,8%▼
A11: Region Hovedstaden, Voksen psykiatrien | B11: Hovedart 6: Finansudgifter | F11: 0 | G11: 0
A12: Region Hovedstaden, Voksen psykiatrien | B12: Hovedart 7: Indtægter | C12: =-41569.2998279017*Nøgle!F32 -> -37957.64954 | D12: =-52151.7098770644*Nøgle!F10 -> -45769.98852 | E12: =+('Skema 1'!E12/('Skema 1'!E12+'Skema 1'!E22))*-85366.9885828899 -> -71104.88078 | F12: -30640.34865 | G12: 7812.338984 | H12: -17,1%▼ | I12: Der er lavet efterregulering mellemregionalt for årene 2017 til 2022
A13: Region Hovedstaden, Voksen psykiatrien | B13: Hovedart 8: Finansindtægter | C13: =+Nøgle!K35 -> -18809.83307 | D13: =+Nøgle!K13 -> -57105.77394 | E13: =+('Skema 1'!E12/('Skema 1'!E12+'Skema 1'!E22))*-212264.317344543 -> -176801.7032 | F13: -249065.5825 | G13: 38295.94086 | H13: -67,1%▼ | I13: 2022 COVID kompensation
A14: Region Hovedstaden, Voksen psykiatrien | B14: Hovedart 9: Interne udgifter og indtægter | F14: 0 | G14: 0
A15: Region Hovedstaden, Voksen psykiatrien | B15: I alt | C15: =SUMIFS((C7:C14),(A7:A14),A15) -> 454475.5213 | D15: =SUMIFS((D7:D14),(A7:A14),A15) -> 482440.4532 | E15: =SUMIFS((E7:E14),(A7:A14),A15) -> 482758.3801 | F15: =SUMIFS((F7:F14),(A7:A14),A15) -> 342999.3439 | G15: -27964.93193 | H15: -5,8%
A16: Region Hovedstaden, Børn-unge psykiatrien | G16: 0
A17: Region Hovedstaden, Børn-unge psykiatrien | B17: Hovedart 1: Lønninger | C17: =247112.750167636*Nøgle!F37 -> 36659.10146 | D17: =234485.664206863*Nøgle!F15 -> 33086.90798 | E17: =+('Skema 1'!E17/('Skema 1'!E7+'Skema 1'!E17))*(227732.263192288) -> 31347.7522 | F17: 21663.85347 | G17: 3572.193485 | H17: 10,8%▲
A18: Region Hovedstaden, Børn-unge psykiatrien | B18: Hovedart 2: Varekøb | C18: =282539.825521685*Nøgle!F38 -> 30270.82988 | D18: =298113.883422191*Nøgle!F16 -> 37602.37395 | E18: =+('Skema 1'!E18/('Skema 1'!E8+'Skema 1'!E18))*349696.923187806 -> 31201.99887 | F18: 55241.71932 | G18: -7331.544074 | H18: -19,5%▼ | I18: COVID merudgifter udgifter bortfaldet
A19: Region Hovedstaden, Børn-unge psykiatrien | B19: Hovedart 4: Tjenesteydelser m.v. | C19: =53548.2039704899*Nøgle!F39 -> 5047.599818 | D19: =(153676.911697849-15465.9374931691)*Nøgle!F17 -> 14798.13725 | E19: =+('Skema 1'!E19/('Skema 1'!E9+'Skema 1'!E19))*(247134.157931937-3405.74977447589) -> 27920.05324 | F19: 19582.15267 | G19: -9750.537431 | H19: -65,9%▼
A20: Region Hovedstaden, Børn-unge psykiatrien | B20: Hovedart 5: Tilskud og overførsler | C20: =20.4714654209393*Nøgle!F40 -> 0.7160971412 | D20: =-7.05730363414842*Nøgle!F18 -> -0.1702905013 | E20: =+('Skema 1'!E20/('Skema 1'!E10+'Skema 1'!E20))*-23.3378505265572 -> -0.5116803622 | F20: 0.6001440443 | G20: 0.8863876425 | H20: -520,5%▼
A21: Region Hovedstaden, Børn-unge psykiatrien | B21: Hovedart 6: Finansudgifter | F21: 0 | G21: 0
A22: Region Hovedstaden, Børn-unge psykiatrien | B22: Hovedart 7: Indtægter | C22: =-41569.2998279017*Nøgle!F42 -> -3611.650291 | D22: =-52151.7098770644*Nøgle!F20 -> -6381.721355 | E22: =+('Skema 1'!E22/('Skema 1'!E12+'Skema 1'!E22))*-85366.9885828899 -> -14262.1078 | F22: -4747.729071 | G22: 2770.071065 | H22: -43,4%▼ | I22: Der er lavet efterregulering mellemregionalt for årene 2017 til 2022
A23: Region Hovedstaden, Børn-unge psykiatrien | B23: Hovedart 8: Finansindtægter | C23: =+Nøgle!K45 -> 8111.123121 | D23: =+Nøgle!K23 -> -2305.227353 | E23: =+('Skema 1'!E22/('Skema 1'!E12+'Skema 1'!E22))*-212264.317344543 -> -35462.61414 | F23: -38592.7693 | G23: 10416.35047 | H23: -451,9%▼ | I23: 2022 COVID kompensation
A24: Region Hovedstaden, Børn-unge psykiatrien | B24: Hovedart 9: Interne udgifter og indtægter | F24: 0 | G24: 0
A25: Region Hovedstaden, Børn-unge psykiatrien | B25: I alt | C25: =SUMIFS((C7:C24),(A7:A24),A25) -> 76477.72008 | D25: =SUMIFS((D7:D24),(A7:A24),A25) -> 76800.30018 | E25: =SUMIFS((E7:E24),(A7:A24),A25) -> 40744.57068 | F25: =SUMIFS((F7:F24),(A7:A24),A25) -> 53147.82724 | G25: -322.5800943 | H25: -0,4%
A26: Ikke fordelte udgifter i Region Hovedstaden, psykiatri | G26: 0
A27: Ikke fordelte udgifter i Region Hovedstaden, psykiatri | B27: Hovedart 1: Lønninger | G27: 0
A28: Ikke fordelte udgifter i Region Hovedstaden, psykiatri | B28: Hovedart 2: Varekøb | G28: 0
A29: Ikke fordelte udgifter i Region Hovedstaden, psykiatri | B29: Hovedart 4: Tjenesteydelser m.v. | G29: 0
A30: Ikke fordelte udgifter i Region Hovedstaden, psykiatri | B30: Hovedart 5: Tilskud og overførsler | G30: 0
A31: Ikke fordelte udgifter i Region Hovedstaden, psykiatri | B31: Hovedart 6: Finansudgifter | G31: 0
A32: Ikke fordelte udgifter i Region Hovedstaden, psykiatri | B32: Hovedart 7: Indtægter | G32: 0
A33: Ikke fordelte udgifter i Region Hovedstaden, psykiatri | B33: Hovedart 8: Finansindtægter | G33: 0
A34: Ikke fordelte udgifter i Region Hovedstaden, psykiatri | B34: Hovedart 9: Interne udgifter og indtægter | G34: 0
A35: Ikke fordelte udgifter i Region Hovedstaden, psykiatri | B35: I alt | C35: =SUMIFS((C7:C34),(A7:A34),A35) -> 0 | D35: =SUMIFS((D7:D34),(A7:A34),A35) -> 0 | E35: =SUMIFS((E7:E34),(A7:A34),A35) -> 0 | F35: =SUMIFS((F7:F34),(A7:A34),A35) -> 0 | G35: 0

Sheet Skema 3
A1: Region Hovedstaden, psykiatriske sygehuse.
B2: Skema 3:Regionale fællesudgifter og -indtægter. (1.000 kr.)
A5: Sygehus | C5: 2023 | D5: 2022 | E5: 2021 | F5: 2020 | G5: Δ2022-2023 | H5: % afvigelse | I5: Begrundelse
A6: Region Hovedstaden, Voksen psykiatrien
A7: Region Hovedstaden, Voksen psykiatrien | B7: 1.70.50: Andel af fællesudgifter | C7: =44378.6323551777*Nøgle!F35 -> 37986.39975 | D7: =(41288.8982272307-208.061564189507)*Nøgle!F13 -> 35439.21165 | E7: =+('Skema 1'!E15/('Skema 1'!E15+'Skema 1'!E25))*(37384.9807908488-804.77869333603) -> 31830.79647 | F7: 62341.66697 | G7: =IF(ISERROR(C7- D7)=TRUE,"",C7 - D7) -> 2547.188096 | H7: =IF(ISERROR((((C7- D7)/D7)*100)=TRUE),"",IF((((C7- D7)/D7)*100)<-7,FIXED(((C7- D7)/D7)*100, 1,TRUE) &"%" & "▼",IF((((C7- D7)/D7)*100)>7,FIXED(((C7- D7)/D7)*100, 1,TRUE) &"%" &"▲",FIXED(((C7- D7)/D7)*100, 1,TRUE)&"%"))) -> 7,2%▲
A8: Region Hovedstaden, Voksen psykiatrien | B8: 1.60.40: Andel af central administration af sundhed (til og med 2019) | F8: 0 | G8: 0
A9: Region Hovedstaden, Voksen psykiatrien | B9: 1.60.41: Andel af øvrige udgifter og indtægter | F9: -99.37917422 | G9: 0
A10: Region Hovedstaden, Voksen psykiatrien | B10: 1.50.33: Andel af central administration af sundhed (ekskl. psykiatri) | F10: 0 | G10: 0
A11: Region Hovedstaden, Voksen psykiatrien | B11: 1.50.35: Administration af det psykiatriske område (kun central del) | C11: =15759.3799609089*Nøgle!F35 -> 13489.42217 | D11: =18320.1728048644*Nøgle!F13 -> 15804.26628 | E11: =+('Skema 1'!E15/('Skema 1'!E15+'Skema 1'!E25))*19097.6221076344 -> 16618.07447 | F11: 18594.50797 | G11: -2314.844112 | H11: -14,6%▼
A12: Region Hovedstaden, Voksen psykiatrien | B12: I alt | C12: =SUMIFS((C7:C11),(A7:A11),A12) -> 51475.82191 | D12: =SUMIFS((D7:D11),(A7:A11),A12) -> 51243.47793 | E12: =SUMIFS((E7:E11),(A7:A11),A12) -> 48448.87094 | F12: =SUMIFS((F7:F11),(A7:A11),A12) -> 80836.79577 | G12: 232.3439844 | H12: 0,5%
A13: Region Hovedstaden, Børn-unge psykiatrien | G13: 0
A14: Region Hovedstaden, Børn-unge psykiatrien | B14: 1.70.50: Andel af fællesudgifter | C14: =44378.6323551777*Nøgle!F45 -> 6392.232609 | D14: =(41288.8982272307-208.061564189507)*Nøgle!F23 -> 5641.625013 | E14: =+('Skema 1'!E25/('Skema 1'!E15+'Skema 1'!E25))*(37384.9807908488-804.77869333603) -> 4749.405624 | F14: 9659.855638 | G14: 750.607596 | H14: 13,3%▲
A15: Region Hovedstaden, Børn-unge psykiatrien | B15: 1.60.40: Andel af central administration af sundhed (til og med 2019) | F15: 0 | G15: 0
A16: Region Hovedstaden, Børn-unge psykiatrien | B16: 1.60.41: Andel af øvrige udgifter og indtægter | F16: -15.39882591 | G16: 0
A17: Region Hovedstaden, Børn-unge psykiatrien | B17: 1.50.33: Andel af central administration af sundhed (ekskl. psykiatri) | E17: =+('Skema 1'!E25/('Skema 1'!E15+'Skema 1'!E25))*19097.6221076344 -> 2479.547642 | F17: 0 | G17: 0
A18: Region Hovedstaden, Børn-unge psykiatrien | B18: 1.50.35: Administration af det psykiatriske område (kun central del) | C18: =15759.3799609089*Nøgle!F45 -> 2269.957796 | D18: =18320.1728048644*Nøgle!F23 -> 2515.906528 | F18: 2881.223288 | G18: -245.9487322 | H18: -9,8%▼
A19: Region Hovedstaden, Børn-unge psykiatrien | B19: I alt | C19: =SUMIFS((C7:C18),(A7:A18),A19) -> 8662.190404 | D19: =SUMIFS((D7:D18),(A7:A18),A19) -> 8157.531541 | E19: =SUMIFS((E7:E18),(A7:A18),A19) -> 7228.953266 | F19: =SUMIFS((F7:F18),(A7:A18),A19) -> 12525.6801 | G19: 504.6588638 | H19: 6,2%
A20: Ikke fordelte udgifter i Region Hovedstaden, psykiatri | G20: 0
A21: Ikke fordelte udgifter i Region Hovedstaden, psykiatri | B21: 1.70.50: Andel af fællesudgifter | G21: 0
A22: Ikke fordelte udgifter i Region Hovedstaden, psykiatri | B22: 1.60.40: Andel af central administration af sundhed (til og med 2019) | G22: 0
A23: Ikke fordelte udgifter i Region Hovedstaden, psykiatri | B23: 1.60.41: Andel af øvrige udgifter og indtægter | G23: 0
A24: Ikke fordelte udgifter i Region Hovedstaden, psykiatri | B24: 1.50.33: Andel af central administration af sundhed (ekskl. psykiatri) | G24: 0
A25: Ikke fordelte udgifter i Region Hovedstaden, psykiatri | B25: 1.50.35: Administration af det psykiatriske område (kun central del) | G25: 0
A26: Ikke fordelte udgifter i Region Hovedstaden, psykiatri | B26: I alt | C26: =SUMIFS((C7:C25),(A7:A25),A26) -> 0 | D26: =SUMIFS((D7:D25),(A7:A25),A26) -> 0 | E26: =SUMIFS((E7:E25),(A7:A25),A26) -> 0 | F26: =SUMIFS((F7:F25),(A7:A25),A26) -> 0 | G26: 0

Sheet Skema 4
A1: Region Hovedstaden, psykiatriske sygehuse.
B2: Skema 4: Udgifter og indtægter til og fra psykiatriske afdelinger konteret på somatiske sygehuse. (1.000 kr.)
A5: Sygehus | C5: 2023 | D5: 2022 | E5: 2021 | F5: 2020 | G5: Δ2022-2023 | H5: % afvigelse | I5: Begrundelse
A6: Region Hovedstaden, Voksen psykiatrien
A7: Region Hovedstaden, Voksen psykiatrien | B7: Korrektion | G7: =IF(ISERROR(C7- D7)=TRUE,"",C7 - D7) -> 0 | H7: =IF(ISERROR((((C7- D7)/D7)*100)=TRUE),"",IF((((C7- D7)/D7)*100)<-7,FIXED(((C7- D7)/D7)*100, 1,TRUE) &"%" & "▼",IF((((C7- D7)/D7)*100)>7,FIXED(((C7- D7)/D7)*100, 1,TRUE) &"%" &"▲",FIXED(((C7- D7)/D7)*100, 1,TRUE)&"%"))) -> 
A8: Region Hovedstaden, Voksen psykiatrien | B8: Lønudg. på psyk. afd.,somatiske sygehuse | G8: 0
A9: Region Hovedstaden, Voksen psykiatrien | B9: Øvrige udg. til psyk. afd.,somatiske sygehuse | G9: 0
A10: Region Hovedstaden, Voksen psykiatrien | B10: I alt | C10: =SUMIFS((C7:C9),(A7:A9),A10) -> 0 | D10: =SUMIFS((D7:D9),(A7:A9),A10) -> 0 | E10: =SUMIFS((E7:E9),(A7:A9),A10) -> 0 | F10: =SUMIFS((F7:F9),(A7:A9),A10) -> 0 | G10: 0
A11: Region Hovedstaden, Børn-unge psykiatrien | G11: 0
A12: Region Hovedstaden, Børn-unge psykiatrien | B12: Korrektion | G12: 0
A13: Region Hovedstaden, Børn-unge psykiatrien | B13: Lønudg. på psyk. afd.,somatiske sygehuse | G13: 0
A14: Region Hovedstaden, Børn-unge psykiatrien | B14: Øvrige udg. til psyk. afd.,somatiske sygehuse | G14: 0
A15: Region Hovedstaden, Børn-unge psykiatrien | B15: I alt | C15: =SUMIFS((C7:C14),(A7:A14),A15) -> 0 | D15: =SUMIFS((D7:D14),(A7:A14),A15) -> 0 | E15: =SUMIFS((E7:E14),(A7:A14),A15) -> 0 | F15: =SUMIFS((F7:F14),(A7:A14),A15) -> 0 | G15: 0
A16: Ikke fordelte udgifter i Region Hovedstaden, psykiatri | G16: 0
A17: Ikke fordelte udgifter i Region Hovedstaden, psykiatri | B17: Korrektion | G17: 0
A18: Ikke fordelte udgifter i Region Hovedstaden, psykiatri | B18: Lønudg. på psyk. afd.,somatiske sygehuse | G18: 0
A19: Ikke fordelte udgifter i Region Hovedstaden, psykiatri | B19: Øvrige udg. til psyk. afd.,somatiske sygehuse | G19: 0
A20: Ikke fordelte udgifter i Region Hovedstaden, psykiatri | B20: I alt | C20: =SUMIFS((C7:C19),(A7:A19),A20) -> 0 | D20: =SUMIFS((D7:D19),(A7:A19),A20) -> 0 | E20: =SUMIFS((E7:E19),(A7:A19),A20) -> 0 | F20: =SUMIFS((F7:F19),(A7:A19),A20) -> 0 | G20: 0

Sheet Skema 5
A1: Region Hovedstaden, psykiatriske sygehuse.
B2: Skema 5: Leasing- og huslejeudgifter. (1.000 kr.)
A5: Sygehus | C5: 2023 | D5: 2022 | E5: 2021 | F5: 2020 | G5: Δ2022-2023 | H5: % afvigelse | I5: Begrundelse
A6: Region Hovedstaden, Voksen psykiatrien
A7: Region Hovedstaden, Voksen psykiatrien | B7: Leasing- og lejeudgifter | C7: 10 | D7: 1262.87037 | E7: 475.0182589 | F7: 1146.005666 | G7: =IF(ISERROR(C7- D7)=TRUE,"",C7 - D7) -> -1252.87037 | H7: =IF(ISERROR((((C7- D7)/D7)*100)=TRUE),"",IF((((C7- D7)/D7)*100)<-7,FIXED(((C7- D7)/D7)*100, 1,TRUE) &"%" & "▼",IF((((C7- D7)/D7)*100)>7,FIXED(((C7- D7)/D7)*100, 1,TRUE) &"%" &"▲",FIXED(((C7- D7)/D7)*100, 1,TRUE)&"%"))) -> -99,2%▼
A8: Region Hovedstaden, Voksen psykiatrien | B8: Huslejeudgifter | C8: 176 | D8: 0 | E8: 31.16376147 | F8: 53.68196688 | G8: 176
A9: Region Hovedstaden, Voksen psykiatrien | B9: I alt | C9: =SUMIFS((C7:C8),(A7:A8),A9) -> 186 | D9: =SUMIFS((D7:D8),(A7:A8),A9) -> 1262.87037 | E9: =SUMIFS((E7:E8),(A7:A8),A9) -> 506.1820203 | F9: =SUMIFS((F7:F8),(A7:A8),A9) -> 1199.687633 | G9: -1076.87037 | H9: -85,3%▼
A10: Region Hovedstaden, Børn-unge psykiatrien | G10: 0
A11: Region Hovedstaden, Børn-unge psykiatrien | B11: Leasing- og lejeudgifter | D11: 0 | E11: 68.38723113 | F11: 172.2942642 | G11: 0
A12: Region Hovedstaden, Børn-unge psykiatrien | B12: Huslejeudgifter | D12: 0 | E12: 5.002908533 | F12: 8.318033117 | G12: 0
A13: Region Hovedstaden, Børn-unge psykiatrien | B13: I alt | C13: =SUMIFS((C7:C12),(A7:A12),A13) -> 0 | D13: =SUMIFS((D7:D12),(A7:A12),A13) -> 0 | E13: =SUMIFS((E7:E12),(A7:A12),A13) -> 73.39013967 | F13: =SUMIFS((F7:F12),(A7:A12),A13) -> 180.6122973 | G13: 0
A14: Ikke fordelte udgifter i Region Hovedstaden, psykiatri | G14: 0
A15: Ikke fordelte udgifter i Region Hovedstaden, psykiatri | B15: Leasing- og lejeudgifter | G15: 0
A16: Ikke fordelte udgifter i Region Hovedstaden, psykiatri | B16: Huslejeudgifter | G16: 0
A17: Ikke fordelte udgifter i Region Hovedstaden, psykiatri | B17: I alt | C17: =SUMIFS((C7:C16),(A7:A16),A17) -> 0 | D17: =SUMIFS((D7:D16),(A7:A16),A17) -> 0 | E17: =SUMIFS((E7:E16),(A7:A16),A17) -> 0 | F17: =SUMIFS((F7:F16),(A7:A16),A17) -> 0 | G17: 0

Sheet Skema 6
A1: Region Hovedstaden, psykiatriske sygehuse.
B2: Skema 6: Udgifter til andet end patientbehandling. (1.000 kr.)
A5: Sygehus | C5: 2023 | D5: 2022 | E5: 2021 | F5: 2020 | G5: Δ2022-2023 | H5: % afvigelse | I5: Begrundelse
A6: Region Hovedstaden, Voksen psykiatrien
A7: Region Hovedstaden, Voksen psykiatrien | B7: Skema 6.1: Center for voldsramte (Bispebjerg) | G7: =IF(ISERROR(C7- D7)=TRUE,"",C7 - D7) -> 0 | H7: =IF(ISERROR((((C7- D7)/D7)*100)=TRUE),"",IF((((C7- D7)/D7)*100)<-7,FIXED(((C7- D7)/D7)*100, 1,TRUE) &"%" & "▼",IF((((C7- D7)/D7)*100)>7,FIXED(((C7- D7)/D7)*100, 1,TRUE) &"%" &"▲",FIXED(((C7- D7)/D7)*100, 1,TRUE)&"%"))) -> 
A8: Region Hovedstaden, Voksen psykiatrien | B8: Skema 6.2: Ventilatørbistand i hjemmet, respiratorpatienter | G8: 0
A9: Region Hovedstaden, Voksen psykiatrien | B9: Skema 6.3: Blodprøvetagning i eget hjem | G9: 0
A10: Region Hovedstaden, Voksen psykiatrien | B10: Skema 6.4: Psykinfo + pårørende | C10: 5800 | D10: 5597.169422 | E10: 5317.183136 | F10: 4709.734851 | G10: 202.8305776 | H10: 3,6%
A11: Region Hovedstaden, Voksen psykiatrien | B11: Skema 6.5: Leveret udstyr til patienter i eget hjem, ilt og sonderemedier | G11: 0
A12: Region Hovedstaden, Voksen psykiatrien | B12: Skema 6.6: Montebello (Nordsjællands Hospitaler) | G12: 0
A13: Region Hovedstaden, Voksen psykiatrien | B13: Skema 6.7: Satspulje korrektioner mellem år | G13: 0
A14: Region Hovedstaden, Voksen psykiatrien | B14: Skema 6.8: Klinisk farmakologisk rådgivning af praksissektoren | G14: 0
A15: Region Hovedstaden, Voksen psykiatrien | B15: Skema 6.9: Tandregulering ifm. operation | G15: 0
A16: Region Hovedstaden, Voksen psykiatrien | B16: Skema 6.10: Giftlinjen | G16: 0
A17: Region Hovedstaden, Voksen psykiatrien | B17: Skema 6.11: Tjenestemandspensioner | G17: 0
A18: Region Hovedstaden, Voksen psykiatrien | B18: Skema 6.12: Art 4.6 Betalinger til staten | G18: 0
A19: Region Hovedstaden, Voksen psykiatrien | B19: Skema 6.13: Art 4.7 Betalinger til kommuner | G19: 0
A20: Region Hovedstaden, Voksen psykiatrien | B20: Skema 6.14: Art 4.8 Betalinger til andre regioner | G20: 0
A21: Region Hovedstaden, Voksen psykiatrien | B21: Skema 6.15: Art 7.6 Betalinger fra staten | C21: -3703 | D21: -12548.15946 | E21: -10666.6329 | F21: -22288.61053 | G21: 8845.159464 | H21: -70,5%▼
A22: Region Hovedstaden, Voksen psykiatrien | B22: Skema 6.16: Art 7.7 Betalinger fra kommuner | C22: -61583 | D22: -58164.549 | E22: -48344.42 | F22: -47233.568 | G22: -3418.451 | H22: 5,9%
A23: Region Hovedstaden, Voksen psykiatrien | B23: Skema 6.17: Art 7.8 Betalinger fra andre regioner | C23: -39858 | D23: -67167.23302 | E23: -90524.68606 | F23: -55547.30863 | G23: 27309.23302 | H23: -40,7%▼ | I23: Der er lavet en stor efterregulering mellemregionalt for perioden 2017 til 2021
A24: Region Hovedstaden, Voksen psykiatrien | B24: Skema 6.18: Betalinger til selvejende, private og udenlandske sygehuse | C24: 7574 | D24: =8458.535+16.361 -> 8474.896 | G24: -900.896 | H24: -10,6%▼
A25: Region Hovedstaden, Voksen psykiatrien | B25: Skema 6.19: Dækningsafgift/ejendomsskat | G25: 0
A26: Region Hovedstaden, Voksen psykiatrien | B26: Skema 6.20: Forsikringer/erstatninger | C26: 11163 | D26: 6632.878963 | E26: 8862.118269 | F26: 6006.921256 | G26: 4530.121037 | H26: 68,3%▲
A27: Region Hovedstaden, Voksen psykiatrien | B27: Skema 6.21: Vederlagsfri Lab. –ydelser og andre ydelser til praksissektoren | G27: 0
A28: Region Hovedstaden, Voksen psykiatrien | B28: Skema 6.22: Patienttransport | C28: 3458 | D28: 3039.609692 | E28: 2690.072006 | F28: 2658.729261 | G28: 418.3903079 | H28: 13,8%▲
A29: Region Hovedstaden, Voksen psykiatrien | B29: Skema 6.23: Serviceydelser til/fra andre institutioner eller sygehuse udenfor regionen | G29: 0
A30: Region Hovedstaden, Voksen psykiatrien | B30: Skema 6.24: Udgifter til eksternt finansierede forskning | E30: 0 | G30: 0
A31: Region Hovedstaden, Voksen psykiatrien | B31: Skema 6.25: Forebyggelse rettet mod praksissektoren og kommuner | G31: 0
A32: Region Hovedstaden, Voksen psykiatrien | B32: Skema 6.26: Praksisreservelæger | G32: 0
A33: Region Hovedstaden, Voksen psykiatrien | B33: Skema 6.27: Præhospital | G33: 0
A34: Region Hovedstaden, Voksen psykiatrien | B34: Skema 6.28: Udgifter til Danske Regioner (Kontigent, MedCom, Fællesproj.) | C34: 0 | E34: 0 | F34: 407.1050577 | G34: 0
A35: Region Hovedstaden, Voksen psykiatrien | B35: Skema 6.29: Hospice | G35: 0
A36: Region Hovedstaden, Voksen psykiatrien | B36: Skema 6.30: Konsulenter(Praksis) | G36: 0
A37: Region Hovedstaden, Voksen psykiatrien | B37: Skema 6.31: Videnskabsetisk Komité | G37: 0
A38: Region Hovedstaden, Voksen psykiatrien | B38: Skema 6.32: Tolkebistand | C38: 3267 | D38: 2850.644146 | E38: 3051.668658 | F38: 3349.021101 | G38: 416.3558544 | H38: 14,6%▲
A39: Region Hovedstaden, Voksen psykiatrien | B39: Skema 6.33: Dansk Center for Partikelterapi | G39: =IF(ISERROR(C39- D39)=TRUE,"",C39 - D39) -> 0 | H39: =IF(ISERROR((((C39- D39)/D39)*100)=TRUE),"",IF((((C39- D39)/D39)*100)<-7,FIXED(((C39- D39)/D39)*100, 1,TRUE) &"%" & "▼",IF((((C39- D39)/D39)*100)>7,FIXED(((C39- D39)/D39)*100, 1,TRUE) &"%" &"▲",FIXED(((C39- D39)/D39)*100, 1,TRUE)&"%"))) -> 
A40: Region Hovedstaden, Voksen psykiatrien | B40: Skema 6.34: Politisk organisation – overførte udgifter fra funktion 4.10.01, 4.10.02 og 4.10.04 | G40: 0
A41: Region Hovedstaden, Voksen psykiatrien | B41: Skema 6.35: Øvrige udgifter, Region Sjælland | G41: 0
A42: Region Hovedstaden, Voksen psykiatrien | B42: Skema 6.36: Sundhedsydelser ifm. specialsektor | G42: 0
A43: Region Hovedstaden, Voksen psykiatrien | B43: Skema 6.37: Udgifter til primær sundhed fra skema 2 | G43: 0
A44: Region Hovedstaden, Voksen psykiatrien | B44: Skema 6.38: Udgifter til primær sundhed fra skema 3 | G44: 0
A45: Region Hovedstaden, Voksen psykiatrien | B45: Skema 6.39: Særlige udgifter ifm. COVID-19 | C45: 0 | D45: 19563.88344 | E45: 27000.57455 | F45: 24383.57378 | G45: -19563.88344 | H45: -100,0%▼ | I45: Ingen kompensation i 2023
A46: Region Hovedstaden, Voksen psykiatrien | B46: Skema 6.40: Udleveret udstyr/tilbehør ifm. cochlear implantater | G46: 0
A47: Region Hovedstaden, Voksen psykiatrien | B47: Skema 6.41: Luxturna-behandling, Rigshospitalet | G47: 0
A48: Region Hovedstaden, Voksen psykiatrien | B48: Skema 6.42: Udleveret medicin | G48: 0
A49: Region Hovedstaden, Voksen psykiatrien | B49: Skema 6.43: Udgifter ifm. sundhedsklynger | G49: 0
A50: Region Hovedstaden, Voksen psykiatrien | B50: Skema 6.44: Ukrainske patienter under særlov eller asyl | G50: 0
A51: Region Hovedstaden, Voksen psykiatrien | B51: Skema 6.45: Udgifter ifm. de særlige pladser i psykiatrien | C51: 80265 | G51: 80265 | I51: Ny fra 2023, men der er efterindberettet 2022 data
A52: Region Hovedstaden, Voksen psykiatrien | B52: Skema 6.46: Sikringsafdelingen, Region Sjælland | G52: 0
A53: Region Hovedstaden, Voksen psykiatrien | B53: Skema 6.47: Øvrige (Kan kun benyttes efter aftale med Sundhedsdatastyrelsen) | G53: 0
A54: Region Hovedstaden, Voksen psykiatrien | B54: Lukkede poster (må kun bruges af Sundhedsdatastyrelsen) | G54: 0
A55: Region Hovedstaden, Voksen psykiatrien | B55: I alt | C55: =SUMIFS((C7:C54),(A7:A54),A55) -> 6383 | D55: =SUMIFS((D7:D54),(A7:A54),A55) -> -91720.85983 | E55: =SUMIFS((E7:E54),(A7:A54),A55) -> -102614.1224 | F55: =SUMIFS((F7:F54),(A7:A54),A55) -> -83554.40185 | G55: 98103.85983 | H55: -107,0%▼
A56: Region Hovedstaden, Børn-unge psykiatrien | G56: 0
A57: Region Hovedstaden, Børn-unge psykiatrien | B57: Skema 6.1: Center for voldsramte (Bispebjerg) | G57: 0
A58: Region Hovedstaden, Børn-unge psykiatrien | B58: Skema 6.2: Ventilatørbistand i hjemmet, respiratorpatienter | G58: 0
A59: Region Hovedstaden, Børn-unge psykiatrien | B59: Skema 6.3: Blodprøvetagning i eget hjem | G59: 0
A60: Region Hovedstaden, Børn-unge psykiatrien | B60: Skema 6.4: Psykinfo + pårørende | C60: 1010 | D60: 919.5341276 | E60: 848.7519638 | F60: 729.7744986 | G60: 90.46587245 | H60: 9,8%▲
A61: Region Hovedstaden, Børn-unge psykiatrien | B61: Skema 6.5: Leveret udstyr til patienter i eget hjem, ilt og sonderemedier | G61: 0
A62: Region Hovedstaden, Børn-unge psykiatrien | B62: Skema 6.6: Montebello (Nordsjællands Hospitaler) | G62: 0
A63: Region Hovedstaden, Børn-unge psykiatrien | B63: Skema 6.7: Satspulje korrektioner mellem år | G63: 0
A64: Region Hovedstaden, Børn-unge psykiatrien | B64: Skema 6.8: Klinisk farmakologisk rådgivning af praksissektoren | G64: 0
A65: Region Hovedstaden, Børn-unge psykiatrien | B65: Skema 6.9: Tandregulering ifm. operation | G65: 0
A66: Region Hovedstaden, Børn-unge psykiatrien | B66: Skema 6.10: Giftlinjen | G66: 0
A67: Region Hovedstaden, Børn-unge psykiatrien | B67: Skema 6.11: Tjenestemandspensioner | G67: 0
A68: Region Hovedstaden, Børn-unge psykiatrien | B68: Skema 6.12: Art 4.6 Betalinger til staten | G68: 0
A69: Region Hovedstaden, Børn-unge psykiatrien | B69: Skema 6.13: Art 4.7 Betalinger til kommuner | G69: 0
A70: Region Hovedstaden, Børn-unge psykiatrien | B70: Skema 6.14: Art 4.8 Betalinger til andre regioner | G70: 0
A71: Region Hovedstaden, Børn-unge psykiatrien | B71: Skema 6.15: Art 7.6 Betalinger fra staten | C71: -836 | D71: -9042.571666 | E71: -28974.94699 | F71: -26618.50495 | G71: =IF(ISERROR(C71- D71)=TRUE,"",C71 - D71) -> 8206.571666 | H71: =IF(ISERROR((((C71- D71)/D71)*100)=TRUE),"",IF((((C71- D71)/D71)*100)<-7,FIXED(((C71- D71)/D71)*100, 1,TRUE) &"%" & "▼",IF((((C71- D71)/D71)*100)>7,FIXED(((C71- D71)/D71)*100, 1,TRUE) &"%" &"▲",FIXED(((C71- D71)/D71)*100, 1,TRUE)&"%"))) -> -90,8%▼
A72: Region Hovedstaden, Børn-unge psykiatrien | B72: Skema 6.16: Art 7.7 Betalinger fra kommuner | G72: 0
A73: Region Hovedstaden, Børn-unge psykiatrien | B73: Skema 6.17: Art 7.8 Betalinger fra andre regioner | C73: -6126 | D73: -5722.767978 | E73: -16314.20094 | F73: -11593.88737 | G73: -403.2320222 | H73: 7,0%▲
A74: Region Hovedstaden, Børn-unge psykiatrien | B74: Skema 6.18: Betalinger til selvejende, private og udenlandske sygehuse | C74: 16521 | D74: 15878.802 | G74: 642.198 | H74: 4,0%
A75: Region Hovedstaden, Børn-unge psykiatrien | B75: Skema 6.19: Dækningsafgift/ejendomsskat | G75: 0
A76: Region Hovedstaden, Børn-unge psykiatrien | B76: Skema 6.20: Forsikringer/erstatninger | C76: 276 | D76: 157.3751167 | E76: 326.0990806 | F76: 757.4711645 | G76: 118.6248833 | H76: 75,4%▲
A77: Region Hovedstaden, Børn-unge psykiatrien | B77: Skema 6.21: Vederlagsfri Lab. –ydelser og andre ydelser til praksissektoren | G77: 0
A78: Region Hovedstaden, Børn-unge psykiatrien | B78: Skema 6.22: Patienttransport | C78: 1049 | D78: 1164.492718 | E78: 760.7955044 | F78: 877.9470794 | G78: -115.4927179 | H78: -9,9%▼
A79: Region Hovedstaden, Børn-unge psykiatrien | B79: Skema 6.23: Serviceydelser til/fra andre institutioner eller sygehuse udenfor regionen | G79: 0
A80: Region Hovedstaden, Børn-unge psykiatrien | B80: Skema 6.24: Udgifter til eksternt finansierede forskning | E80: 0 | G80: 0
A81: Region Hovedstaden, Børn-unge psykiatrien | B81: Skema 6.25: Forebyggelse rettet mod praksissektoren og kommuner | G81: 0
A82: Region Hovedstaden, Børn-unge psykiatrien | B82: Skema 6.26: Praksisreservelæger | G82: 0
A83: Region Hovedstaden, Børn-unge psykiatrien | B83: Skema 6.27: Præhospital | G83: 0
A84: Region Hovedstaden, Børn-unge psykiatrien | B84: Skema 6.28: Udgifter til Danske Regioner (Kontigent, MedCom, Fællesproj.) | E84: 0 | F84: 63.08102234 | G84: 0
A85: Region Hovedstaden, Børn-unge psykiatrien | B85: Skema 6.29: Hospice | G85: 0
A86: Region Hovedstaden, Børn-unge psykiatrien | B86: Skema 6.30: Konsulenter(Praksis) | G86: 0
A87: Region Hovedstaden, Børn-unge psykiatrien | B87: Skema 6.31: Videnskabsetisk Komité | G87: 0
A88: Region Hovedstaden, Børn-unge psykiatrien | B88: Skema 6.32: Tolkebistand | C88: 451 | D88: 426.2901444 | E88: 516.3853219 | F88: 472.3260585 | G88: 24.70985563 | H88: 5,8%
A89: Region Hovedstaden, Børn-unge psykiatrien | B89: Skema 6.33: Dansk Center for Partikelterapi | G89: 0
A90: Region Hovedstaden, Børn-unge psykiatrien | B90: Skema 6.34: Politisk organisation – overførte udgifter fra funktion 4.10.01, 4.10.02 og 4.10.04 | G90: 0
A91: Region Hovedstaden, Børn-unge psykiatrien | B91: Skema 6.35: Øvrige udgifter, Region Sjælland | G91: 0
A92: Region Hovedstaden, Børn-unge psykiatrien | B92: Skema 6.36: Sundhedsydelser ifm. specialsektor | G92: 0
A93: Region Hovedstaden, Børn-unge psykiatrien | B93: Skema 6.37: Udgifter til primær sundhed fra skema 2 | G93: 0
A94: Region Hovedstaden, Børn-unge psykiatrien | B94: Skema 6.38: Udgifter til primær sundhed fra skema 3 | G94: 0
A95: Region Hovedstaden, Børn-unge psykiatrien | B95: Skema 6.39: Særlige udgifter ifm. COVID-19 | C95: 0 | D95: 935.0685485 | E95: 4232.754454 | F95: 5185.426218 | G95: -935.0685485 | H95: -100,0%▼
A96: Region Hovedstaden, Børn-unge psykiatrien | B96: Skema 6.40: Udleveret udstyr/tilbehør ifm. cochlear implantater | G96: 0
A97: Region Hovedstaden, Børn-unge psykiatrien | B97: Skema 6.41: Luxturna-behandling, Rigshospitalet | G97: 0
A98: Region Hovedstaden, Børn-unge psykiatrien | B98: Skema 6.42: Udleveret medicin | G98: 0
A99: Region Hovedstaden, Børn-unge psykiatrien | B99: Skema 6.43: Udgifter ifm. sundhedsklynger | G99: 0
A100: Region Hovedstaden, Børn-unge psykiatrien | B100: Skema 6.44: Ukrainske patienter under særlov eller asyl | G100: 0
A101: Region Hovedstaden, Børn-unge psykiatrien | B101: Skema 6.45: Udgifter ifm. de særlige pladser i psykiatrien | G101: 0
A102: Region Hovedstaden, Børn-unge psykiatrien | B102: Skema 6.46: Sikringsafdelingen, Region Sjælland | G102: 0
A103: Region Hovedstaden, Børn-unge psykiatrien | B103: Skema 6.47: Øvrige (Kan kun benyttes efter aftale med Sundhedsdatastyrelsen) | G103: =IF(ISERROR(C103- D103)=TRUE,"",C103 - D103) -> 0 | H103: =IF(ISERROR((((C103- D103)/D103)*100)=TRUE),"",IF((((C103- D103)/D103)*100)<-7,FIXED(((C103- D103)/D103)*100, 1,TRUE) &"%" & "▼",IF((((C103- D103)/D103)*100)>7,FIXED(((C103- D103)/D103)*100, 1,TRUE) &"%" &"▲",FIXED(((C103- D103)/D103)*100, 1,TRUE)&"%"))) -> 
A104: Region Hovedstaden, Børn-unge psykiatrien | B104: Lukkede poster (må kun bruges af Sundhedsdatastyrelsen) | G104: 0
A105: Region Hovedstaden, Børn-unge psykiatrien | B105: I alt | C105: =SUMIFS((C7:C104),(A7:A104),A105) -> 12345 | D105: =SUMIFS((D7:D104),(A7:A104),A105) -> 4716.223012 | E105: =SUMIFS((E7:E104),(A7:A104),A105) -> -38604.3616 | F105: =SUMIFS((F7:F104),(A7:A104),A105) -> -30126.36628 | G105: 7628.776988 | H105: 161,8%▲
A106: Ikke fordelte udgifter i Region Hovedstaden, psykiatri | G106: 0
A107: Ikke fordelte udgifter i Region Hovedstaden, psykiatri | B107: Skema 6.1: Center for voldsramte (Bispebjerg) | G107: 0
A108: Ikke fordelte udgifter i Region Hovedstaden, psykiatri | B108: Skema 6.2: Ventilatørbistand i hjemmet, respiratorpatienter | G108: 0
A109: Ikke fordelte udgifter i Region Hovedstaden, psykiatri | B109: Skema 6.3: Blodprøvetagning i eget hjem | G109: 0
A110: Ikke fordelte udgifter i Region Hovedstaden, psykiatri | B110: Skema 6.4: Psykinfo + pårørende | G110: 0
A111: Ikke fordelte udgifter i Region Hovedstaden, psykiatri | B111: Skema 6.5: Leveret udstyr til patienter i eget hjem, ilt og sonderemedier | G111: 0
A112: Ikke fordelte udgifter i Region Hovedstaden, psykiatri | B112: Skema 6.6: Montebello (Nordsjællands Hospitaler) | G112: 0
A113: Ikke fordelte udgifter i Region Hovedstaden, psykiatri | B113: Skema 6.7: Satspulje korrektioner mellem år | G113: 0
A114: Ikke fordelte udgifter i Region Hovedstaden, psykiatri | B114: Skema 6.8: Klinisk farmakologisk rådgivning af praksissektoren | G114: 0
A115: Ikke fordelte udgifter i Region Hovedstaden, psykiatri | B115: Skema 6.9: Tandregulering ifm. operation | G115: 0
A116: Ikke fordelte udgifter i Region Hovedstaden, psykiatri | B116: Skema 6.10: Giftlinjen | G116: 0
A117: Ikke fordelte udgifter i Region Hovedstaden, psykiatri | B117: Skema 6.11: Tjenestemandspensioner | G117: 0
A118: Ikke fordelte udgifter i Region Hovedstaden, psykiatri | B118: Skema 6.12: Art 4.6 Betalinger til staten | G118: 0
A119: Ikke fordelte udgifter i Region Hovedstaden, psykiatri | B119: Skema 6.13: Art 4.7 Betalinger til kommuner | G119: 0
A120: Ikke fordelte udgifter i Region Hovedstaden, psykiatri | B120: Skema 6.14: Art 4.8 Betalinger til andre regioner | G120: 0
A121: Ikke fordelte udgifter i Region Hovedstaden, psykiatri | B121: Skema 6.15: Art 7.6 Betalinger fra staten | G121: 0
A122: Ikke fordelte udgifter i Region Hovedstaden, psykiatri | B122: Skema 6.16: Art 7.7 Betalinger fra kommuner | G122: 0
A123: Ikke fordelte udgifter i Region Hovedstaden, psykiatri | B123: Skema 6.17: Art 7.8 Betalinger fra andre regioner | G123: 0
A124: Ikke fordelte udgifter i Region Hovedstaden, psykiatri | B124: Skema 6.18: Betalinger til selvejende, private og udenlandske sygehuse | G124: 0
A125: Ikke fordelte udgifter i Region Hovedstaden, psykiatri | B125: Skema 6.19: Dækningsafgift/ejendomsskat | G125: 0
A126: Ikke fordelte udgifter i Region Hovedstaden, psykiatri | B126: Skema 6.20: Forsikringer/erstatninger | G126: 0
A127: Ikke fordelte udgifter i Region Hovedstaden, psykiatri | B127: Skema 6.21: Vederlagsfri Lab. –ydelser og andre ydelser til praksissektoren | G127: 0
A128: Ikke fordelte udgifter i Region Hovedstaden, psykiatri | B128: Skema 6.22: Patienttransport | G128: 0
A129: Ikke fordelte udgifter i Region Hovedstaden, psykiatri | B129: Skema 6.23: Serviceydelser til/fra andre institutioner eller sygehuse udenfor regionen | G129: 0
A130: Ikke fordelte udgifter i Region Hovedstaden, psykiatri | B130: Skema 6.24: Udgifter til eksternt finansierede forskning | G130: 0
A131: Ikke fordelte udgifter i Region Hovedstaden, psykiatri | B131: Skema 6.25: Forebyggelse rettet mod praksissektoren og kommuner | G131: 0
A132: Ikke fordelte udgifter i Region Hovedstaden, psykiatri | B132: Skema 6.26: Praksisreservelæger | G132: 0
A133: Ikke fordelte udgifter i Region Hovedstaden, psykiatri | B133: Skema 6.27: Præhospital | G133: 0
A134: Ikke fordelte udgifter i Region Hovedstaden, psykiatri | B134: Skema 6.28: Udgifter til Danske Regioner (Kontigent, MedCom, Fællesproj.) | G134: 0
A135: Ikke fordelte udgifter i Region Hovedstaden, psykiatri | B135: Skema 6.29: Hospice | G135: =IF(ISERROR(C135- D135)=TRUE,"",C135 - D135) -> 0 | H135: =IF(ISERROR((((C135- D135)/D135)*100)=TRUE),"",IF((((C135- D135)/D135)*100)<-7,FIXED(((C135- D135)/D135)*100, 1,TRUE) &"%" & "▼",IF((((C135- D135)/D135)*100)>7,FIXED(((C135- D135)/D135)*100, 1,TRUE) &"%" &"▲",FIXED(((C135- D135)/D135)*100, 1,TRUE)&"%"))) -> 
A136: Ikke fordelte udgifter i Region Hovedstaden, psykiatri | B136: Skema 6.30: Konsulenter(Praksis) | G136: 0
A137: Ikke fordelte udgifter i Region Hovedstaden, psykiatri | B137: Skema 6.31: Videnskabsetisk Komité | G137: 0
A138: Ikke fordelte udgifter i Region Hovedstaden, psykiatri | B138: Skema 6.32: Tolkebistand | G138: 0
A139: Ikke fordelte udgifter i Region Hovedstaden, psykiatri | B139: Skema 6.33: Dansk Center for Partikelterapi | G139: 0
A140: Ikke fordelte udgifter i Region Hovedstaden, psykiatri | B140: Skema 6.34: Politisk organisation – overførte udgifter fra funktion 4.10.01, 4.10.02 og 4.10.04 | G140: 0
A141: Ikke fordelte udgifter i Region Hovedstaden, psykiatri | B141: Skema 6.35: Øvrige udgifter, Region Sjælland | G141: 0
A142: Ikke fordelte udgifter i Region Hovedstaden, psykiatri | B142: Skema 6.36: Sundhedsydelser ifm. specialsektor | G142: 0
A143: Ikke fordelte udgifter i Region Hovedstaden, psykiatri | B143: Skema 6.37: Udgifter til primær sundhed fra skema 2 | G143: 0
A144: Ikke fordelte udgifter i Region Hovedstaden, psykiatri | B144: Skema 6.38: Udgifter til primær sundhed fra skema 3 | G144: 0
A145: Ikke fordelte udgifter i Region Hovedstaden, psykiatri | B145: Skema 6.39: Særlige udgifter ifm. COVID-19 | G145: 0
A146: Ikke fordelte udgifter i Region Hovedstaden, psykiatri | B146: Skema 6.40: Udleveret udstyr/tilbehør ifm. cochlear implantater | G146: 0
A147: Ikke fordelte udgifter i Region Hovedstaden, psykiatri | B147: Skema 6.41: Luxturna-behandling, Rigshospitalet | G147: 0
A148: Ikke fordelte udgifter i Region Hovedstaden, psykiatri | B148: Skema 6.42: Udleveret medicin | G148: 0
A149: Ikke fordelte udgifter i Region Hovedstaden, psykiatri | B149: Skema 6.43: Udgifter ifm. sundhedsklynger | G149: 0
A150: Ikke fordelte udgifter i Region Hovedstaden, psykiatri | B150: Skema 6.44: Ukrainske patienter under særlov eller asyl | G150: 0
A151: Ikke fordelte udgifter i Region Hovedstaden, psykiatri | B151: Skema 6.45: Udgifter ifm. de særlige pladser i psykiatrien | G151: 0
A152: Ikke fordelte udgifter i Region Hovedstaden, psykiatri | B152: Skema 6.46: Sikringsafdelingen, Region Sjælland | G152: 0
A153: Ikke fordelte udgifter i Region Hovedstaden, psykiatri | B153: Skema 6.47: Øvrige (Kan kun benyttes efter aftale med Sundhedsdatastyrelsen) | G153: 0
A154: Ikke fordelte udgifter i Region Hovedstaden, psykiatri | B154: Lukkede poster (må kun bruges af Sundhedsdatastyrelsen) | G154: 0
A155: Ikke fordelte udgifter i Region Hovedstaden, psykiatri | B155: I alt | C155: =SUMIFS((C7:C154),(A7:A154),A155) -> 0 | D155: =SUMIFS((D7:D154),(A7:A154),A155) -> 0 | E155: =SUMIFS((E7:E154),(A7:A154),A155) -> 0 | F155: =SUMIFS((F7:F154),(A7:A154),A155) -> 0 | G155: 0

Sheet Skema 7
A1: Region Hovedstaden, psykiatriske sygehuse.
B2: Skema 7: Vederlagsfrie ydelser mellem sygehusene. (1.000 kr.)
A5: Sygehus | B5: 2023 | D5: 2023 | E5: 2022 | G5: 2022 | H5: 2021 | J5: 2021 | K5: 2020 | M5: 2020
B6: Leverede | C6: Modtagne | D6: Lev. - Mod. | E6: Leverede | F6: Modtagne | G6: Lev. - Mod. | H6: Leverede | I6: Modtagne | J6: Lev. - Mod. | K6: Leverede | L6: Modtagne | M6: Lev. - Mod.
A7: Region Hovedstaden. Voksen psykiatrien | C7: =26059.7539093052*Nøgle!F35 -> 22306.14547 | D7: =$B$7-$C$7 -> -22306.14547 | F7: =22909.8927139134*Nøgle!F13 -> 19763.68065 | G7: =$E$7-$F$7 -> -19763.68065 | I7: =+('Skema 1'!E15/('Skema 1'!E15+'Skema 1'!E25))*18746.4290201019 -> 16312.47868 | J7: =$H$7-$I$7 -> -16312.47868 | L7: 16157.90335 | M7: =$K$7-$L$7 -> -16157.90335
A8: Region Hovedstaden. Børn-unge psykiatrien | C8: =26059.7539093052*Nøgle!F45 -> 3753.608434 | D8: =$B$8-$C$8 -> -3753.608434 | F8: 3146.212061 | G8: =$E$8-$F$8 -> -3146.212061 | I8: =+('Skema 1'!E25/('Skema 1'!E15+'Skema 1'!E25))*18746.4290201019 -> 2433.950342 | J8: =$H$8-$I$8 -> -2433.950342 | L8: 2503.670841 | M8: =$K$8-$L$8 -> -2503.670841
A9: Ikke fordelte udgifter i Region Hovedstaden. psykiatri | D9: =$B$9-$C$9 -> 0 | G9: =$E$9-$F$9 -> 0 | J9: =$H$9-$I$9 -> 0 | M9: =$K$9-$L$9 -> 0
A10: I alt | B10: =SUM(B7:B9) -> 0 | C10: =SUM(C7:C9) -> 26059.75391 | D10: =SUM(D7:D9) -> -26059.75391 | E10: =SUM(E7:E9) -> 0 | F10: 22909.89271 | G10: -22909.89271 | H10: 0 | I10: 18746.42902 | J10: -18746.42902 | K10: =SUM(K7:K9) -> 0 | L10: 18661.57419 | M10: -18661.57419
A12: NB: Afstem med somatikken

Sheet Rapport
B2: Skema 1: Udgifter og indtægter på sygehusene/enhederne, eksklusiv omkostningssted 0001, Fælleskonto. (1.000 kr.)
C3: 2023 | D3: 2022 | E3: 2021 | F3: 2020
B4: Hovedart 1: Lønninger | C4: 3436597.878 | D4: 3302651.554 | E4: 3088652.025 | F4: 2970174.44
B5: Hovedart 2: Varekøb | C5: 70347.03961 | D5: 88108.67767 | E5: 124210.1091 | F5: 90014.57193
B6: Hovedart 4: Tjenesteydelser m.v. | C6: 521971.1393 | D6: 498258.5467 | E6: 473247.7725 | F6: 390103.5916
B7: Hovedart 5: Tilskud og overførsler | C7: 2492.06713 | D7: 2824.60014 | E7: 3032.91346 | F7: 1559.70663
B8: Hovedart 6: Finansudgifter | C8: 0 | D8: 0 | E8: 0 | F8: 0
B9: Hovedart 7: Indtægter | C9: -245527.7788 | D9: -261905.7393 | E9: -309907.9377 | F9: -236285.8891
B10: Hovedart 8: Finansindtægter | C10: 0 | D10: 0 | E10: 0 | F10: 0
B11: Hovedart 9: Interne udgifter og indtægter | C11: 0 | D11: 0 | E11: 0 | F11: 0
B12: I alt | C12: 3785880.345 | D12: 3629937.639 | E12: 3379234.883 | F12: 3215566.421
B14: Skema 2: Fællesudgifter og -indtægter vedrørende sygehusene. (1.000 kr.)
C15: 2023 | D15: 2022 | E15: 2021 | F15: 2020
B16: Hovedart 1: Lønninger | C16: 247112.7502 | D16: 234485.6642 | E16: 227732.2632 | F16: 161475.5431
B17: Hovedart 2: Varekøb | C17: 282539.8255 | D17: 298113.8834 | E17: 349696.9232 | F17: 411754.3835
B18: Hovedart 4: Tjenesteydelser m.v. | C18: 53548.20397 | D18: 138210.9742 | E18: 243728.4082 | F18: 145959.2007
B19: Hovedart 5: Tilskud og overførsler | C19: 20.47146542 | D19: -7.057303634 | E19: -23.33785053 | F19: 4.473284756
B20: Hovedart 6: Finansudgifter | C20: 0 | D20: 0 | E20: 0 | F20: 0
B21: Hovedart 7: Indtægter | C21: -41569.29983 | D21: -52151.70988 | E21: -85366.98858 | F21: -35388.07772
B22: Hovedart 8: Finansindtægter | C22: -10698.70995 | D22: -59411.00129 | E22: -212264.3173 | F22: -287658.3518
B23: Hovedart 9: Interne udgifter og indtægter | C23: 0 | D23: 0 | E23: 0 | F23: 0
B24: I alt | C24: 530953.2413 | D24: 559240.7534 | E24: 523502.9508 | F24: 396147.1711
B26: Skema 3:Regionale fællesudgifter og -indtægter. (1.000 kr.)
C27: 2023 | D27: 2022 | E27: 2021 | F27: 2020
B28: 1.70.50: Andel af fællesudgifter | C28: 44378.63236 | D28: 41080.83666 | E28: 36580.2021 | F28: 72001.52261
B29: 1.60.40: Andel af central administration af sundhed (til og med 2019) | C29: 0 | D29: 0 | E29: 0 | F29: 0
B30: 1.60.41: Andel af øvrige udgifter og indtægter | C30: 0 | D30: 0 | E30: 0 | F30: -114.7780001
B31: 1.50.33: Andel af central administration af sundhed (ekskl. psykiatri) | C31: 0 | D31: 0 | E31: 2479.547642 | F31: 0
B32: 1.50.35: Administration af det psykiatriske område (kun central del) | C32: 15759.37996 | D32: 18320.1728 | E32: 16618.07447 | F32: 21475.73126
B33: I alt | C33: 60138.01232 | D33: 59401.00947 | E33: 55677.82421 | F33: 93362.47587
B35: Skema 4: Udgifter og indtægter til og fra psykiatriske afdelinger konteret på somatiske sygehuse. (1.000 kr.)
C36: 2023 | D36: 2022 | E36: 2021 | F36: 2020
B37: Korrektion | C37: 0 | D37: 0 | E37: 0 | F37: 0
B38: Lønudg. på psyk. afd.,somatiske sygehuse | C38: 0 | D38: 0 | E38: 0 | F38: 0
B39: Øvrige udg. til psyk. afd.,somatiske sygehuse | C39: 0 | D39: 0 | E39: 0 | F39: 0
B40: I alt | C40: 0 | D40: 0 | E40: 0 | F40: 0
B42: Skema 5: Leasing- og huslejeudgifter. (1.000 kr.)
C43: 2023 | D43: 2022 | E43: 2021 | F43: 2020
B44: Leasing- og lejeudgifter | C44: 10 | D44: 1262.87037 | E44: 543.40549 | F44: 1318.29993
B45: Huslejeudgifter | C45: 176 | D45: 0 | E45: 36.16667 | F45: 62
B46: I alt | C46: 186 | D46: 1262.87037 | E46: 579.57216 | F46: 1380.29993
B48: Skema 6: Udgifter til andet end patientbehandling. (1.000 kr.)
C49: 2023 | D49: 2022 | E49: 2021 | F49: 2020
B50: Skema 6.1: Center for voldsramte (Bispebjerg) | C50: 0 | D50: 0 | E50: 0 | F50: 0
B51: Skema 6.2: Ventilatørbistand i hjemmet, respiratorpatienter | C51: 0 | D51: 0 | E51: 0 | F51: 0
B52: Skema 6.3: Blodprøvetagning i eget hjem | C52: 0 | D52: 0 | E52: 0 | F52: 0
B53: Skema 6.4: Psykinfo + pårørende | C53: 6810 | D53: 6516.70355 | E53: 6165.9351 | F53: 5439.50935
B54: Skema 6.5: Leveret udstyr til patienter i eget hjem, ilt og sonderemedier | C54: 0 | D54: 0 | E54: 0 | F54: 0
B55: Skema 6.6: Montebello (Nordsjællands Hospitaler) | C55: 0 | D55: 0 | E55: 0 | F55: 0
B56: Skema 6.7: Satspulje korrektioner mellem år | C56: 0 | D56: 0 | E56: 0 | F56: 0
B57: Skema 6.8: Klinisk farmakologisk rådgivning af praksissektoren | C57: 0 | D57: 0 | E57: 0 | F57: 0
B58: Skema 6.9: Tandregulering ifm. operation | C58: 0 | D58: 0 | E58: 0 | F58: 0
B59: Skema 6.10: Giftlinjen | C59: 0 | D59: 0 | E59: 0 | F59: 0
B60: Skema 6.11: Tjenestemandspensioner | C60: 0 | D60: 0 | E60: 0 | F60: 0
B61: Skema 6.12: Art 4.6 Betalinger til staten | C61: 0 | D61: 0 | E61: 0 | F61: 0
B62: Skema 6.13: Art 4.7 Betalinger til kommuner | C62: 0 | D62: 0 | E62: 0 | F62: 0
B63: Skema 6.14: Art 4.8 Betalinger til andre regioner | C63: 0 | D63: 0 | E63: 0 | F63: 0
B64: Skema 6.15: Art 7.6 Betalinger fra staten | C64: -4539 | D64: -21590.73113 | E64: -39641.57989 | F64: -48907.11548
B65: Skema 6.16: Art 7.7 Betalinger fra kommuner | C65: -61583 | D65: -58164.549 | E65: -48344.42 | F65: -47233.568
B66: Skema 6.17: Art 7.8 Betalinger fra andre regioner | C66: -45984 | D66: -72890.001 | E66: -106838.887 | F66: -67141.196
B67: Skema 6.18: Betalinger til selvejende, private og udenlandske sygehuse | C67: 24095 | D67: 24353.698 | E67: 0 | F67: 0
B68: Skema 6.19: Dækningsafgift/ejendomsskat | C68: 0 | D68: 0 | E68: 0 | F68: 0
B69: Skema 6.20: Forsikringer/erstatninger | C69: 11439 | D69: 6790.25408 | E69: 9188.21735 | F69: 6764.39242
B70: Skema 6.21: Vederlagsfri Lab. –ydelser og andre ydelser til praksissektoren | C70: 0 | D70: 0 | E70: 0 | F70: 0
B71: Skema 6.22: Patienttransport | C71: 4507 | D71: 4204.10241 | E71: 3450.86751 | F71: 3536.67634
B72: Skema 6.23: Serviceydelser til/fra andre institutioner eller sygehuse udenfor regionen | C72: 0 | D72: 0 | E72: 0 | F72: 0
B73: Skema 6.24: Udgifter til eksternt finansierede forskning | C73: 0 | D73: 0 | E73: 0 | F73: 0
B74: Skema 6.25: Forebyggelse rettet mod praksissektoren og kommuner | C74: 0 | D74: 0 | E74: 0 | F74: 0
B75: Skema 6.26: Praksisreservelæger | C75: 0 | D75: 0 | E75: 0 | F75: 0
B76: Skema 6.27: Præhospital | C76: 0 | D76: 0 | E76: 0 | F76: 0
B77: Skema 6.28: Udgifter til Danske Regioner (Kontigent, MedCom, Fællesproj.) | C77: 0 | D77: 0 | E77: 0 | F77: 470.18608
B78: Skema 6.29: Hospice | C78: 0 | D78: 0 | E78: 0 | F78: 0
B79: Skema 6.30: Konsulenter(Praksis) | C79: 0 | D79: 0 | E79: 0 | F79: 0
B80: Skema 6.31: Videnskabsetisk Komité | C80: 0 | D80: 0 | E80: 0 | F80: 0
B81: Skema 6.32: Tolkebistand | C81: 3718 | D81: 3276.93429 | E81: 3568.05398 | F81: 3821.34716
B82: Skema 6.33: Dansk Center for Partikelterapi | C82: 0 | D82: 0 | E82: 0 | F82: 0
B83: Skema 6.34: Politisk organisation – overførte udgifter fra funktion 4.10.01, 4.10.02 og 4.10.04 | C83: 0 | D83: 0 | E83: 0 | F83: 0
B84: Skema 6.35: Øvrige udgifter, Region Sjælland | C84: 0 | D84: 0 | E84: 0 | F84: 0
B85: Skema 6.36: Sundhedsydelser ifm. specialsektor | C85: 0 | D85: 0 | E85: 0 | F85: 0
B86: Skema 6.37: Udgifter til primær sundhed fra skema 2 | C86: 0 | D86: 0 | E86: 0 | F86: 0
B87: Skema 6.38: Udgifter til primær sundhed fra skema 3 | C87: 0 | D87: 0 | E87: 0 | F87: 0
B88: Skema 6.39: Særlige udgifter ifm. COVID-19 | C88: 0 | D88: 20498.95199 | E88: 31233.329 | F88: 29569
B89: Skema 6.40: Udleveret udstyr/tilbehør ifm. cochlear implantater | C89: 0 | D89: 0 | E89: 0 | F89: 0
B90: Skema 6.41: Luxturna-behandling, Rigshospitalet | C90: 0 | D90: 0 | E90: 0 | F90: 0
B91: Skema 6.42: Udleveret medicin | C91: 0 | D91: 0 | E91: 0 | F91: 0
B92: Skema 6.43: Udgifter ifm. sundhedsklynger | C92: 0 | D92: 0 | E92: 0 | F92: 0
B93: Skema 6.44: Ukrainske patienter under særlov eller asyl | C93: 0 | D93: 0 | E93: 0 | F93: 0
B94: Skema 6.45: Udgifter ifm. de særlige pladser i psykiatrien | C94: 80265 | D94: 0 | E94: 0 | F94: 0
B95: Skema 6.46: Sikringsafdelingen, Region Sjælland | C95: 0 | D95: 0 | E95: 0 | F95: 0
B96: Skema 6.47: Øvrige (Kan kun benyttes efter aftale med Sundhedsdatastyrelsen) | C96: 0 | D96: 0 | E96: 0 | F96: 0
B97: Lukkede poster (må kun bruges af Sundhedsdatastyrelsen) | C97: 0 | D97: 0 | E97: 0 | F97: 0
B98: I alt | C98: 18728 | D98: -87004.63681 | E98: -141218.4839 | F98: -113680.7681

Sheet Rapport SGH
A1: 2023 | B1: Skema 1 | C1: Skema 2 | D1: Skema 3 | E1: Skema 4 | F1: Skema 5 | G1: Skema 6 | H1: Skema 7 | I1: I alt
A2: Region Hovedstaden, Voksen psykiatrien | B2: 3240567.736 | C2: 454475.5213 | D2: 51475.82191 | E2: 0 | F2: 186 | G2: 6383 | H2: -22306.14547 | I2: =(SUM(B2:D2))-(SUM(E2:H2)) -> 3762256.224
A3: Region Hovedstaden, Børn-unge psykiatrien | B3: 545312.609 | C3: 76477.72008 | D3: 8662.190404 | E3: 0 | F3: 0 | G3: 12345 | H3: -3753.608434 | I3: =(SUM(B3:D3))-(SUM(E3:H3)) -> 621861.1279
A4: Ikke fordelte udgifter i Region Hovedstaden, psykiatri | B4: 0 | C4: 0 | D4: 0 | E4: 0 | F4: 0 | G4: 0 | H4: 0 | I4: 0
A6: 2022
A7: Region Hovedstaden, Voksen psykiatrien | B7: 3131438.859 | C7: 482440.4532 | D7: 51243.47793 | E7: 0 | F7: 1262.87037 | G7: -91720.85983 | H7: -19763.68065 | I7: =(SUM(B7:D7))-(SUM(E7:H7)) -> 3775344.46
A8: Region Hovedstaden, Børn-unge psykiatrien | B8: 498498.7805 | C8: 76800.30018 | D8: 8157.531541 | E8: 0 | F8: 0 | G8: 4716.223012 | H8: -3146.212061 | I8: 581886.6013
A9: Ikke fordelte udgifter i Region Hovedstaden, psykiatri | B9: 0 | C9: 0 | D9: 0 | E9: 0 | F9: 0 | G9: 0 | H9: 0 | I9: 0

Sheet Afstemning af ikke fordelte
A1: Afstemning af Ikke fordelte indtægter- og udgifter
A2: 1.000 kr. | B2: 2023
A3: Skema 1 | B3: 0
A4: Skema 2 | B4: 0
A5: Skema 3 | B5: 0
A6: Skema 4 | B6: 0
A7: Skema 5 | B7: 0
A8: Skema 6 | B8: 0
A9: 1+2+3-4-5-6 | B9: =+B3+B4+B5-B6-B7-B8 -> 0

Sheet Nøgle (hidden)
E3: 2022
C4: Region Hovedstaden, Voksen psykiatrien
C5: Region Hovedstaden, Voksen psykiatrien | D5: Hovedart 1: Lønninger | E5: =+'Skema 1'!D7 -> 2836633.606 | F5: =+E5/(E5+E15) -> 0.8588958174
C6: Region Hovedstaden, Voksen psykiatrien | D6: Hovedart 2: Varekøb | E6: =+'Skema 1'!D8 -> 76995.15485 | F6: =+E6/(E6+E16) -> 0.8738657404
C7: Region Hovedstaden, Voksen psykiatrien | D7: Hovedart 4: Tjenesteydelser m.v. | E7: =+'Skema 1'!D9 -> 444910.407 | F7: 0.8929308086
C8: Region Hovedstaden, Voksen psykiatrien | D8: Hovedart 5: Tilskud og overførsler | E8: =+'Skema 1'!D10 -> 2756.443433 | F8: 0.9758703167
C9: Region Hovedstaden, Voksen psykiatrien | D9: Hovedart 6: Finansudgifter | E9: =+'Skema 1'!D11 -> 0
C10: Region Hovedstaden, Voksen psykiatrien | D10: Hovedart 7: Indtægter | E10: =+'Skema 1'!D12 -> -229856.7527 | F10: 0.8776315988
C11: Region Hovedstaden, Voksen psykiatrien | D11: Hovedart 8: Finansindtægter | E11: =+'Skema 1'!D13 -> 0
C12: Region Hovedstaden, Voksen psykiatrien | D12: Hovedart 9: Interne udgifter og indtægter | E12: =+'Skema 1'!D14 -> 0
C13: Region Hovedstaden, Voksen psykiatrien | D13: I alt | E13: =+'Skema 1'!D15 -> 3131438.859 | F13: 0.862670153 | H13: 559240.9237 | I13: =+H13*F13 -> 482440.4532 | J13: =+'Skema 2'!D7+'Skema 2'!D8+'Skema 2'!D9+'Skema 2'!D10+'Skema 2'!D12 -> 539546.2271 | K13: =+I13-J13 -> -57105.77394
C14: Region Hovedstaden, Børn-unge psykiatrien
C15: Region Hovedstaden, Børn-unge psykiatrien | D15: Hovedart 1: Lønninger | E15: =+'Skema 1'!D17 -> 466017.9479 | F15: =+E15/(E5+E15) -> 0.1411041826
C16: Region Hovedstaden, Børn-unge psykiatrien | D16: Hovedart 2: Varekøb | E16: =+'Skema 1'!D18 -> 11113.52282 | F16: =+E16/(E6+E16) -> 0.1261342596
C17: Region Hovedstaden, Børn-unge psykiatrien | D17: Hovedart 4: Tjenesteydelser m.v. | E17: =+'Skema 1'!D19 -> 53348.13969 | F17: 0.1070691914
C18: Region Hovedstaden, Børn-unge psykiatrien | D18: Hovedart 5: Tilskud og overførsler | E18: =+'Skema 1'!D20 -> 68.15670669 | F18: 0.02412968325
C19: Region Hovedstaden, Børn-unge psykiatrien | D19: Hovedart 6: Finansudgifter | E19: =+'Skema 1'!D21 -> 0
C20: Region Hovedstaden, Børn-unge psykiatrien | D20: Hovedart 7: Indtægter | E20: =+'Skema 1'!D22 -> -32048.98657 | F20: 0.1223684012
C21: Region Hovedstaden, Børn-unge psykiatrien | D21: Hovedart 8: Finansindtægter | E21: =+'Skema 1'!D23 -> 0
C22: Region Hovedstaden, Børn-unge psykiatrien | D22: Hovedart 9: Interne udgifter og indtægter | E22: =+'Skema 1'!D24 -> 0
C23: Region Hovedstaden, Børn-unge psykiatrien | D23: I alt | E23: =+'Skema 1'!D25 -> 498498.7805 | F23: 0.137329847 | H23: 559240.9237 | I23: =+H23*F23 -> 76800.47047 | J23: =+'Skema 2'!D17+'Skema 2'!D18+'Skema 2'!D19+'Skema 2'!D22 -> 79105.69782 | K23: =+I23-J23 -> -2305.227353
E26: 2023
D27: Hovedart 1: Lønninger | E27: =+'Skema 1'!C7 -> 2926779.626 | F27: =+E27/(E27+E37) -> 0.8516503036
D28: Hovedart 2: Varekøb | E28: =+'Skema 1'!C8 -> 62810.17905 | F28: =+E28/(E28+E38) -> 0.8928617237
D29: Hovedart 4: Tjenesteydelser m.v. | E29: =+'Skema 1'!C9 -> 472768.7155 | F29: 0.9057372714
D30: Hovedart 5: Tilskud og overførsler | E30: =+'Skema 1'!C10 -> 2404.893979 | F30: 0.965019742
D31: Hovedart 6: Finansudgifter | E31: =+'Skema 1'!C11 -> 0
D32: Hovedart 7: Indtægter | E32: =+'Skema 1'!C12 -> -224195.6785 | F32: 0.9131173653
D33: Hovedart 8: Finansindtægter | E33: =+'Skema 1'!C13 -> 0
D34: Hovedart 9: Interne udgifter og indtægter | E34: =+'Skema 1'!C14 -> 0
D35: I alt | E35: =+'Skema 1'!C15 -> 3240567.736 | F35: 0.8559614781 | H35: 530953.2413 | I35: =+H35*F35 -> 454475.5213 | J35: =+'Skema 2'!C7+'Skema 2'!C8+'Skema 2'!C9+'Skema 2'!C10+'Skema 2'!C12 -> 473285.3543 | K35: =+I35-J35 -> -18809.83307
D37: Hovedart 1: Lønninger | E37: =+'Skema 1'!C17 -> 509818.2517 | F37: =+E37/(E27+E37) -> 0.1483496964
D38: Hovedart 2: Varekøb | E38: =+'Skema 1'!C18 -> 7536.860563 | F38: =+E38/(E28+E38) -> 0.1071382763
D39: Hovedart 4: Tjenesteydelser m.v. | E39: =+'Skema 1'!C19 -> 49202.42385 | F39: 0.0942627286
D40: Hovedart 5: Tilskud og overførsler | E40: =+'Skema 1'!C20 -> 87.17315105 | F40: 0.03498025796
D41: Hovedart 6: Finansudgifter | E41: =+'Skema 1'!C21 -> 0
D42: Hovedart 7: Indtægter | E42: =+'Skema 1'!C22 -> -21332.10031 | F42: 0.08688263467
D43: Hovedart 8: Finansindtægter | E43: =+'Skema 1'!C23 -> 0
D44: Hovedart 9: Interne udgifter og indtægter | E44: =+'Skema 1'!C24 -> 0
D45: I alt | E45: =+'Skema 1'!C25 -> 545312.609 | F45: 0.1440385219 | H45: 530953.2413 | I45: =+H45*F45 -> 76477.72008 | J45: =+'Skema 2'!C17+'Skema 2'!C18+'Skema 2'!C19+'Skema 2'!C20+'Skema 2'!C22 -> 68366.59696 | K45: =+I45-J45 -> 8111.123121
